bitfinex/quotes_ETHUSD_20250326
["timestamp","ask_amount","ask_price","bid_price","bid_amount"]
[1743014279171,4.3872346,2012.2,2011.9,9.94056]
[1743014279588,0.1978,2012.5,2012.2,4.96959]
[1743014279783,12.93758,2012.6,2012.2,4.96959]
[1743014280474,3.0,2012.4,2012.2,4.96959]
[1743014281208,3.0,2012.4,2012.1,4.9699]
[1743014281712,3.0,2012.4,2012.1,9.93969]
[1743014281925,3.0,2012.4,2012.1,9.93962]
[1743014282428,3.0,2012.4,2012.1,4.96979]
[1743014283433,7.96929,2012.4,2012.1,4.96979]
[1743014283983,7.96929,2012.4,2012.0,0.8196]
[1743014283984,4.96951,2012.3,2012.0,0.8196]
[1743014284183,4.96951,2012.3,2011.9,4.97025]
[1743014284184,9.1589446,2012.3,2011.9,4.97025]
[1743014284386,4.96969,2012.2,2011.9,5.9659572]
[1743014284679,9.93959,2012.2,2011.8,11.92045]
[1743014284907,9.3571746,2012.1,2011.8,6.12]
[1743014285078,4.97018,2012.0,2011.7,4.97091]
[1743014286208,4.97018,2012.0,2011.6,5.77475]
[1743014286717,4.97018,2012.0,2011.6,4.97115]
[1743014286876,4.97018,2012.0,2011.6,9.94218]
[1743014287085,9.94053,2012.0,2011.6,4.97103]
[1743014287323,9.94055,2012.0,2011.6,4.97103]
[1743014287820,4.97018,2012.0,2011.6,9.94204]
[1743014288021,4.97018,2012.0,2011.6,10.93475919]
[1743014288523,4.97018,2012.0,2011.7,4.97078]
[1743014288524,3.0,2012.0,2011.7,4.97078]
[1743014290028,7.9702,2012.0,2011.7,4.97078]
[1743014290226,3.0,2012.0,2011.7,9.94158]
[1743014290529,3.0,2012.0,2011.7,10.76411]
[1743014290715,3.0,2012.0,2011.7,5.79328]
[1743014291113,7.97021,2012.0,2011.7,5.79328]
[1743014291295,7.97021,2012.0,2011.7,4.97078]
[1743014292634,3.0,2012.0,2011.7,9.94158]
[1743014292931,7.97022,2012.0,2011.7,4.97078]
[1743014295222,7.97019,2012.0,2011.7,4.97078]
[1743014295427,3.0,2012.0,2011.7,4.97078]
[1743014296913,7.97026,2012.0,2011.6,19.47114]
[1743014297124,12.94061,2012.0,2011.6,19.47114]
[1743014297527,7.97026,2012.0,2011.6,19.47114]
[1743014297727,7.97026,2012.0,2011.6,24.44207]
[1743014298051,7.97026,2012.0,2011.7,4.9709]
[1743014303211,3.0,2012.0,2011.7,9.94169]
[1743014303411,3.0,2012.0,2011.7,4.97079]
[1743014303633,7.97025,2012.0,2011.7,4.97079]
[1743014307764,3.0,2012.0,2011.6,14.5]
[1743014307944,3.0,2012.0,2011.5,4.97138]
[1743014307945,0.1978,2011.8,2011.5,4.97138]
[1743014308144,9.1598746,2011.9,2011.5,9.94264]
[1743014308343,8.16799,2012.0,2011.6,4.97114]
[1743014308661,8.16799,2012.0,2011.8,4.97058]
[1743014308662,3.0,2012.0,2011.8,4.97058]
[1743014309123,3.0,2012.1,2011.8,4.97054]
[1743014310111,3.0,2012.1,2011.9,4.97042]
[1743014310312,0.1978,2012.4,2012.2,4.96965]
[1743014310560,9.92949,2012.6,2012.2,4.96965]
[1743014310735,4.96931,2012.4,2012.0,4.97008]
[1743014311433,9.93957,2012.2,2011.8,4.97063]
[1743014311634,9.93953,2012.2,2011.8,4.97053]
[1743014312049,4.96969,2012.2,2011.9,4.97034]
[1743014313552,12.3567046,2012.3,2011.9,9.94054]
[1743014313757,4.96981,2012.2,2011.9,4.97026]
[1743014315152,4.96981,2012.2,2011.9,9.94054]
[1743014315353,17.3263046,2012.3,2011.9,4.97026]
[1743014315751,12.3567046,2012.3,2012.0,4.97012]
[1743014315954,7.1894346,2012.3,2012.0,10.73804]
[1743014316155,7.1894346,2012.3,2012.0,5.76792]
[1743014316526,17.1284646,2012.3,2011.9,4.97037]
[1743014316852,4.96969,2012.2,2011.9,4.97037]
[1743014317256,12.1588746,2012.3,2011.9,9.94061]
[1743014317441,12.1588746,2012.3,2012.0,4.97011]
[1743014318532,12.1588746,2012.3,2011.9,4.97024]
[1743014318731,7.1894346,2012.3,2012.0,4.97004]
[1743014319050,7.1894346,2012.3,2012.1,0.7619]
[1743014319440,14.1191846,2012.5,2012.1,6.801816]
[1743014319650,13.9213846,2012.5,2012.2,4.9696]
[1743014320233,8.9524346,2012.5,2012.2,9.93916]
[1743014320659,8.9524346,2012.5,2012.2,4.96956]
[1743014320860,13.9214146,2012.5,2012.2,4.96956]
[1743014325463,18.8905046,2012.5,2012.2,4.96956]
[1743014325667,13.9214146,2012.5,2012.2,4.96956]
[1743014327368,13.9214146,2012.5,2012.1,5.7318]
[1743014327671,13.9214146,2012.5,2012.1,10.70154]
[1743014327839,13.9214146,2012.5,2012.2,4.96966]
[1743014328387,8.9524346,2012.5,2012.3,4.96941]
[1743014329575,18.8905446,2012.5,2012.1,5.73179]
[1743014329744,18.8905246,2012.5,2012.1,10.70162]
[1743014330074,13.9214246,2012.5,2012.1,10.70162]
[1743014330276,13.9214246,2012.5,2012.2,4.96967]
[1743014331069,18.8905746,2012.5,2012.1,4.96983]
[1743014331272,5.16701,2012.4,2012.1,4.96983]
[1743014331773,9.1584246,2012.5,2012.1,9.93961]
[1743014331954,9.1584246,2012.5,2012.1,9.93951]
[1743014332153,14.1275146,2012.5,2012.1,9.93951]
[1743014332366,14.1275146,2012.5,2012.1,4.96973]
[1743014332675,4.96922,2012.4,2012.1,4.96973]
[1743014332872,9.1584246,2012.5,2012.1,9.93957]
[1743014333042,9.1584246,2012.5,2012.1,9.93956]
[1743014334177,9.1584246,2012.5,2012.2,4.96964]
[1743014334966,14.1275246,2012.5,2012.2,4.96964]
[1743014335173,14.1275146,2012.5,2012.2,4.96964]
[1743014335476,9.1584246,2012.5,2012.1,4.96973]
[1743014335772,9.1584246,2012.5,2012.2,4.96968]
[1743014338771,4.1894346,2012.5,2012.2,5.74678]
[1743014338960,4.1894346,2012.5,2012.3,4.96919]
[1743014339290,3.0,2012.7,2012.4,4.96919]
[1743014339455,12.1578946,2012.7,2012.4,4.96919]
[1743014339986,12.1578946,2012.7,2012.4,4.96906]
[1743014340683,17.1264946,2012.7,2012.4,4.96906]
[1743014340855,12.1578946,2012.7,2012.4,4.96906]
[1743014341370,17.1265146,2012.7,2012.3,9.93874]
[1743014341566,12.1578946,2012.7,2012.3,9.93874]
[1743014342345,17.1265146,2012.7,2012.3,4.96933]
[1743014342546,17.1265146,2012.7,2012.3,4.96932]
[1743014343154,12.1578946,2012.7,2012.3,9.93861]
[1743014343360,12.1578946,2012.7,2012.4,4.96918]
[1743014345074,17.1265646,2012.7,2012.3,19.46929]
[1743014345284,17.1265646,2012.7,2012.3,24.4386]
[1743014345883,17.1265646,2012.7,2012.3,19.46929]
[1743014346279,9.1584746,2012.5,2012.2,0.7771]
[1743014346484,14.1276246,2012.5,2012.2,0.7771]
[1743014346654,4.96919,2012.4,2012.2,0.7771]
[1743014346854,4.1894346,2012.3,2012.0,20.26253]
[1743014347054,4.1894346,2012.3,2012.0,25.23259]
[1743014347271,4.1894346,2012.3,2012.0,27.755849]
[1743014347469,4.1894346,2012.3,2012.0,22.785719]
[1743014347683,9.1589546,2012.3,2012.0,0.7924]
[1743014348247,9.1589546,2012.3,2012.0,5.76257]
[1743014348754,4.1894346,2012.3,2012.0,5.76244]
[1743014349055,4.96923,2012.4,2012.1,4.96979]
[1743014349378,3.0,2012.5,2012.2,5.72657]
[1743014349554,3.0,2012.5,2012.3,4.96943]
[1743014349884,3.0,2012.5,2012.2,10.69617]
[1743014350178,7.96895,2012.5,2012.2,5.72657]
[1743014350382,12.1583846,2012.5,2012.2,5.72657]
[1743014350878,7.1894346,2012.5,2012.2,10.69617]
[1743014353887,3.0,2012.5,2012.2,6.796157]
[1743014354180,7.96898,2012.5,2012.3,0.77875764]
[1743014354381,7.96898,2012.5,2012.2,0.757]
[1743014354751,12.1584146,2012.5,2012.2,0.757]
[1743014354951,17.1275246,2012.5,2012.2,0.757]
[1743014355180,12.1584146,2012.5,2012.2,0.757]
[1743014355978,12.1584146,2012.5,2012.2,5.72661]
[1743014356184,12.1584146,2012.5,2012.2,8.34538994]
[1743014356386,0.97538382,2012.4,2012.2,8.34538994]
[1743014356596,0.97538382,2012.4,2012.2,2.61877994]
[1743014357388,9.1589646,2012.3,2012.0,0.8218]
[1743014357583,14.1285746,2012.3,2012.0,0.8218]
[1743014357766,14.1285746,2012.3,2011.9,19.47029]
[1743014358168,14.1285746,2012.3,2011.9,20.46421985]
[1743014358373,4.96968,2012.2,2011.9,20.46421985]
[1743014358557,4.96968,2012.2,2012.0,1.99000985]
[1743014358758,9.1589546,2012.3,2012.0,1.99000985]
[1743014359657,9.1589546,2012.3,2012.0,6.96016985]
[1743014361308,9.1589546,2012.3,2012.0,1.99000985]
[1743014361590,9.1589546,2012.3,2012.0,6.96017985]
[1743014361885,4.96971,2012.2,2012.0,1.99000985]
[1743014362090,4.3872346,2012.1,2011.7,6.12]
[1743014362264,9.1600046,2011.9,2011.6,0.8251]
[1743014362463,9.1600046,2011.9,2011.4,11.91668]
[1743014362784,4.97075,2011.8,2011.4,11.91668]
[1743014362978,4.97075,2011.8,2011.4,32.579878]
[1743014363287,9.9416,2011.8,2011.4,27.608298]
[1743014363489,5.16855,2011.8,2011.4,27.608238]
[1743014363693,5.16855,2011.8,2011.4,32.579798]
[1743014364276,4.97069,2011.8,2011.5,4.9713]
[1743014364474,4.97069,2011.8,2011.5,8.2292538]
[1743014365072,14.1304646,2011.9,2011.5,8.2292538]
[1743014365270,4.97076,2011.8,2011.5,8.2292538]
[1743014367995,4.97076,2011.8,2011.5,3.2579538]
[1743014368586,9.94162,2011.8,2011.5,3.2579538]
[1743014368896,4.97076,2011.8,2011.5,3.2579538]
[1743014369995,4.97076,2011.8,2011.5,8.2292438]
[1743014370174,4.97076,2011.8,2011.5,3.2579538]
[1743014370797,4.97093,2011.7,2011.5,3.2579538]
[1743014371499,4.97076,2011.8,2011.5,3.2579538]
[1743014371690,4.97076,2011.8,2011.4,26.459748]
[1743014373192,4.97076,2011.8,2011.4,21.488238]
[1743014373388,4.97095,2011.7,2011.4,21.488238]
[1743014374203,4.97095,2011.7,2011.4,6.988238]
[1743014375307,4.1894346,2012.1,2011.5,0.80091074]
[1743014375602,4.96945,2012.3,2012.0,0.7512]
[1743014375970,4.96945,2012.3,2012.0,5.72135]
[1743014376178,10.13417842,2012.4,2012.0,5.7212]
[1743014376522,3.0,2012.3,2012.0,5.7212]
[1743014376879,3.0,2012.3,2012.1,4.96982]
[1743014379306,3.0,2012.3,2012.0,5.7212]
[1743014380407,7.96945,2012.3,2012.0,5.7212]
[1743014382814,7.96945,2012.3,2012.0,6.88984193]
[1743014385876,4.96945,2012.3,2012.0,6.88984193]
[1743014388281,0.97538382,2012.4,2012.0,6.10927653]
[1743014388518,0.97538382,2012.4,2012.2,5.76561]
[1743014388683,5.94464382,2012.4,2012.1,19.46989]
[1743014388886,5.94464382,2012.4,2012.1,22.82184913]
[1743014389110,4.96926,2012.4,2012.1,22.82184913]
[1743014389305,4.96926,2012.4,2012.1,8.32184913]
[1743014389506,4.3872346,2012.5,2012.1,3.35195913]
[1743014389711,4.96953,2012.3,2012.0,6.9161]
[1743014389917,4.96953,2012.3,2012.0,26.38627]
[1743014390113,4.96919,2012.4,2012.0,31.35626]
[1743014390505,4.96919,2012.4,2012.1,4.96989]
[1743014390727,9.3562146,2012.5,2012.2,4.96966]
[1743014390922,5.16678,2012.5,2012.2,4.96966]
[1743014391108,10.13593,2012.5,2012.1,4.96989]
[1743014391906,4.96921,2012.4,2012.1,4.96989]
[1743014392727,4.96921,2012.4,2012.0,11.88619]
[1743014392929,4.96947,2012.3,2012.0,11.88619]
[1743014393425,4.96921,2012.4,2012.0,11.88611]
[1743014393731,4.96921,2012.4,2012.0,16.8562]
[1743014394027,4.96921,2012.4,2012.0,18.54182]
[1743014394202,9.9386,2012.4,2012.0,11.88611]
[1743014395128,4.3872346,2012.5,2011.6,11.91193]
[1743014395129,4.9703,2012.0,2011.6,11.91193]
[1743014395318,4.97056,2011.9,2011.6,6.9408]
[1743014395624,4.97056,2011.9,2011.6,6.12]
[1743014395835,5.16836,2011.9,2011.6,6.12]
[1743014396421,5.16836,2011.9,2011.6,11.09116]
[1743014398035,4.97056,2011.9,2011.6,11.09116]
[1743014399825,3.0,2011.9,2011.6,16.06216]
[1743014400029,5.34408016,2012.0,2011.6,11.091]
[1743014400332,4.96971,2012.2,2011.8,4.97065]
[1743014400629,4.96896,2012.5,2012.0,5.72441]
[1743014400630,4.96922,2012.4,2012.0,5.72441]
[1743014400845,3.0,2012.3,2012.0,5.72441]
[1743014401703,3.0,2012.3,2012.1,4.96989]
[1743014408761,3.0,2012.3,2012.1,5.97775851]
[1743014409856,0.38273842,2012.5,2012.0,0.7544]
[1743014410049,7.96879,2012.6,2012.3,4.96923]
[1743014410838,7.96879,2012.6,2012.2,24.43926]
[1743014411659,7.96879,2012.6,2012.3,4.96943]
[1743014413063,7.96879,2012.6,2012.2,9.93919]
[1743014413364,12.1582246,2012.6,2012.2,4.96959]
[1743014413547,4.96898,2012.5,2012.2,4.96959]
[1743014414868,5.16715,2012.4,2012.0,26.34447]
[1743014415068,5.16715,2012.4,2012.0,6.12]
[1743014415069,9.1592446,2012.2,2012.0,6.12]
[1743014415277,8.16773,2012.1,2012.0,6.12]
[1743014415572,8.54280469,2012.1,2012.0,6.12]
[1743014415738,8.34500469,2012.1,2012.0,6.12]
[1743014417941,10.78860962,2012.1,2012.0,6.12]
[1743014418544,3.0,2012.0,2011.7,9.94157]
[1743014419275,3.0,2012.0,2011.7,4.97077]
[1743014419674,3.0,2012.0,2011.7,9.94158]
[1743014419872,3.0,2012.0,2011.7,9.94155]
[1743014420044,3.0,2012.0,2011.7,4.97077]
[1743014420557,3.0,2012.0,2011.7,9.94157]
[1743014420757,3.0,2012.0,2011.7,4.97072]
[1743014421947,7.97018,2012.0,2011.7,19.47072]
[1743014422578,3.0,2012.0,2011.7,24.4415]
[1743014422771,3.0,2012.0,2011.7,27.38105346]
[1743014422947,3.0,2012.0,2011.7,22.41022346]
[1743014423445,7.97029,2012.0,2011.7,2.93950346]
[1743014423644,7.97029,2012.0,2011.7,4.97084]
[1743014424744,7.97029,2012.0,2011.6,24.44209]
[1743014424949,7.97029,2012.0,2011.6,24.44205]
[1743014425360,7.97029,2012.0,2011.7,4.9709]
[1743014426196,7.97029,2012.0,2011.6,19.47102]
[1743014426350,7.97029,2012.0,2011.6,24.44205]
[1743014426873,7.97029,2012.0,2011.6,4.97102]
[1743014427191,4.97049,2011.9,2011.6,4.97102]
[1743014427600,4.97101,2011.7,2011.4,4.97161]
[1743014428102,4.97117,2011.6,2011.2,19.47213]
[1743014428395,4.9715,2011.5,2011.2,19.47213]
[1743014428596,9.1606046,2011.6,2011.2,19.47192]
[1743014429103,14.1319246,2011.6,2011.2,19.47192]
[1743014429584,9.1606046,2011.6,2011.2,24.44393]
[1743014430280,9.1606046,2011.6,2011.2,19.47192]
[1743014430669,9.1606046,2011.6,2011.3,4.97184]
[1743014430910,4.97096,2011.7,2011.2,14.5]
[1743014431099,5.16851,2011.8,2011.4,5.73946]
[1743014431299,3.1978,2011.8,2011.5,4.9713]
[1743014431690,3.0,2011.8,2011.5,5.0209797]
[1743014431874,3.0,2011.9,2011.6,4.971]
[1743014432075,3.0,2011.9,2011.6,9.94204]
[1743014432281,3.0,2011.9,2011.7,4.9709]
[1743014433010,3.0,2011.9,2011.6,4.971]
[1743014433214,3.0,2011.9,2011.6,9.94203]
[1743014433378,3.0,2011.9,2011.7,4.97087]
[1743014433574,3.0,2011.9,2011.6,6.55020632]
[1743014434704,3.0,2011.9,2011.7,4.97087]
[1743014435211,3.0,2011.9,2011.6,4.971]
[1743014435413,3.0,2011.9,2011.6,9.94201]
[1743014435612,3.0,2011.9,2011.7,4.97087]
[1743014435807,3.0,2011.9,2011.7,4.9708]
[1743014436480,3.0,2011.9,2011.6,4.97112]
[1743014436981,3.0,2011.9,2011.6,9.94207]
[1743014437582,0.1978,2012.0,2011.8,4.97059]
[1743014437810,3.0,2012.0,2011.8,4.97059]
[1743014438016,10.10103469,2012.1,2011.8,4.97059]
[1743014439515,4.3872346,2012.0,2011.7,4.97088]
[1743014439683,4.3872346,2012.0,2011.7,9.94164]
[1743014439883,4.3872346,2012.0,2011.7,4.97076]
[1743014440104,9.3574546,2012.0,2011.7,4.97076]
[1743014440814,14.3277946,2012.0,2011.6,20.63138686]
[1743014441018,9.3574546,2012.0,2011.6,25.60242686]
[1743014441487,9.3574546,2012.0,2011.7,4.97088]
[1743014441988,4.3872346,2012.0,2011.7,4.97079]
[1743014442714,4.3872346,2012.0,2011.7,4.97078]
[1743014442916,9.3574646,2012.0,2011.7,4.97078]
[1743014443415,9.3574646,2012.0,2011.7,19.47078]
[1743014443812,9.3574646,2012.0,2011.8,4.97063]
[1743014443813,4.3872346,2012.0,2011.8,4.97063]
[1743014443988,4.3872346,2012.0,2011.7,24.44159]
[1743014444185,4.3872346,2012.0,2011.7,19.47078]
[1743014444706,9.3574146,2012.0,2011.7,4.97078]
[1743014445519,4.3872346,2012.0,2011.7,9.94161]
[1743014445717,4.3872346,2012.0,2011.7,4.97078]
[1743014448298,4.3872346,2012.0,2011.7,9.94155]
[1743014448500,4.3872346,2012.0,2011.7,4.97077]
[1743014448711,4.3872346,2012.0,2011.7,19.47077]
[1743014449721,4.1894346,2012.0,2011.7,4.97077]
[1743014450312,4.1894346,2012.0,2011.7,9.94161]
[1743014450614,4.1894346,2012.0,2011.7,4.97077]
[1743014451116,4.1894346,2012.0,2011.7,4.97073]
[1743014451293,5.16724,2012.3,2011.9,4.97031]
[1743014451620,0.1978,2012.5,2012.0,0.04969985]
[1743014451785,0.57903754,2012.7,2012.5,4.96885]
[1743014451990,0.38123754,2012.7,2012.5,4.96885]
[1743014452212,3.0,2012.8,2012.5,4.96885]
[1743014452410,7.96821,2012.8,2012.5,4.96885]
[1743014452796,10.17596646,2012.8,2012.4,4.96916]
[1743014453308,3.0,2012.6,2012.4,4.96916]
[1743014453724,3.0,2012.6,2012.4,4.96909]
[1743014456611,8.16657,2012.6,2012.3,0.99208048]
[1743014456944,4.96903,2012.5,2012.2,4.96966]
[1743014457098,8.16657,2012.6,2011.7,5.79295]
[1743014457099,0.1978,2012.2,2011.7,5.79295]
[1743014457305,4.97026,2012.0,2011.7,5.79295]
[1743014457615,9.1593946,2012.1,2011.7,4.97085]
[1743014458130,14.1295046,2012.1,2011.7,4.97085]
[1743014458472,7.97019,2012.0,2011.6,16.06213]
[1743014458608,7.97019,2012.0,2011.6,16.06205]
[1743014458810,7.97019,2012.0,2011.7,4.97091]
[1743014459560,7.97019,2012.0,2011.6,11.09113]
[1743014459735,4.97054,2011.9,2011.6,6.12]
[1743014460128,9.94115,2011.9,2011.6,6.12]
[1743014460331,9.94114,2011.9,2011.6,6.12]
[1743014460548,4.97054,2011.9,2011.6,6.12]
[1743014460728,9.94114,2011.9,2011.6,6.12]
[1743014460940,4.97054,2011.9,2011.6,6.12]
[1743014461344,4.97054,2011.9,2011.6,11.09116]
[1743014462345,3.1978,2012.0,2011.7,4.97081]
[1743014462648,8.16798,2012.0,2011.7,4.97081]
[1743014462853,13.13833,2012.0,2011.6,4.97107]
[1743014463148,8.16798,2012.0,2011.6,4.97107]
[1743014463540,13.13834,2012.0,2011.6,4.97107]
[1743014463851,13.13833,2012.0,2011.6,4.97106]
[1743014464041,8.16798,2012.0,2011.6,4.97106]
[1743014464854,13.13834,2012.0,2011.6,4.97106]
[1743014465055,4.97051,2011.9,2011.6,4.97106]
[1743014465258,4.1894346,2011.9,2011.3,11.85752]
[1743014465558,4.97119,2011.6,2011.3,11.09172]
[1743014466126,4.97119,2011.6,2011.3,6.12]
[1743014466461,4.97119,2011.6,2011.3,11.09187]
[1743014466959,14.1314446,2011.7,2011.3,11.09172]
[1743014467458,9.1603546,2011.7,2011.3,11.09172]
[1743014467755,4.1894346,2011.7,2011.4,4.97152]
[1743014467960,0.56977985,2012.0,2011.5,0.04971183]
[1743014468160,3.0,2012.1,2011.8,4.97059]
[1743014468455,17.1294946,2012.1,2011.7,5.79818]
[1743014468660,9.1600246,2011.9,2011.5,4.9714]
[1743014468862,0.1978,2011.8,2011.5,4.9714]
[1743014469026,4.1894346,2011.7,2011.4,5.74065]
[1743014469230,4.1894346,2011.7,2011.4,4.97155]
[1743014471039,4.97125,2011.6,2011.3,6.12]
[1743014471275,4.97125,2011.6,2011.3,4.97187]
[1743014471431,6.17674983,2011.6,2011.2,5.96381412]
[1743014471634,10.14043,2011.6,2011.2,5.96381412]
[1743014471844,8.16856,2011.8,2011.4,4.97165]
[1743014472047,3.0,2011.8,2011.6,4.97116]
[1743014472241,0.57539891,2012.0,2011.4,4.1894346]
[1743014472465,3.0,2012.1,2011.8,4.97058]
[1743014472840,3.0,2012.1,2011.8,4.97056]
[1743014473039,3.0,2012.1,2011.8,4.97054]
[1743014473541,7.96994,2012.1,2011.7,9.9417]
[1743014473742,12.1593746,2012.1,2011.7,9.9417]
[1743014473966,12.1593746,2012.1,2011.8,4.97066]
[1743014476139,12.5242443,2012.1,2011.8,4.97066]
[1743014476846,7.5543043,2012.1,2011.8,4.97066]
[1743014477050,7.5543043,2012.1,2011.8,4.97055]
[1743014477291,7.5543043,2012.1,2011.8,9.94109]
[1743014477469,3.3648697,2012.1,2011.8,9.94109]
[1743014477641,3.3648697,2012.1,2011.8,4.97054]
[1743014478170,3.3648697,2012.1,2011.8,4.97053]
[1743014479172,8.3348797,2012.1,2011.8,4.97053]
[1743014479368,8.3348797,2012.1,2011.7,4.9709]
[1743014479552,12.5243043,2012.1,2011.7,9.94164]
[1743014479753,12.5243043,2012.1,2011.7,11.67701635]
[1743014481076,12.5243043,2012.1,2011.8,4.97064]
[1743014482173,12.5243043,2012.1,2011.8,9.94122]
[1743014482174,7.5543043,2012.1,2011.8,9.94122]
[1743014482371,3.3648697,2012.1,2011.8,4.97055]
[1743014482583,3.0,2012.1,2011.9,6.43288264]
[1743014482750,5.16701,2012.4,2012.1,4.96991]
[1743014482951,4.96896,2012.5,2012.1,4.9698]
[1743014483159,9.9195,2012.6,2012.2,4.96947]
[1743014483450,9.9195,2012.6,2012.3,4.9694]
[1743014483451,3.0,2012.5,2012.3,4.9694]
[1743014484351,9.9195,2012.6,2012.2,5.77137]
[1743014484578,7.96905,2012.5,2012.2,5.77137]
[1743014484785,4.96924,2012.4,2012.0,5.76173]
[1743014484965,9.3567446,2012.3,2011.9,11.09041]
[1743014485166,4.96978,2012.2,2011.9,11.09041]
[1743014485368,0.1978,2012.0,2011.9,6.12]
[1743014485553,5.16797,2012.0,2011.7,4.97087]
[1743014486280,5.16797,2012.0,2011.6,4.97114]
[1743014486281,4.97042,2011.9,2011.6,4.97114]
[1743014486483,14.1304546,2011.9,2011.5,6.30051346]
[1743014486691,4.97068,2011.8,2011.5,4.97139]
[1743014486856,4.97096,2011.7,2011.4,11.09162]
[1743014487190,4.97124,2011.6,2011.4,6.12]
[1743014487485,9.3581646,2011.7,2011.4,6.12]
[1743014487877,9.73840641,2011.7,2011.4,6.12]
[1743014488054,9.73840641,2011.7,2011.4,11.09162]
[1743014488255,0.57804181,2011.7,2011.4,11.09162]
[1743014488790,4.97125,2011.6,2011.4,6.12]
[1743014489485,9.73848641,2011.7,2011.4,6.12]
[1743014490255,4.97118,2011.6,2011.4,6.12]
[1743014490788,4.97141,2011.5,2011.4,6.12]
[1743014490973,4.97118,2011.6,2011.4,6.12]
[1743014491882,4.97118,2011.6,2011.2,9.94405]
[1743014492187,4.97118,2011.6,2011.2,4.972]
[1743014492571,4.76747641,2011.7,2011.1,5.74758]
[1743014492791,4.76747641,2011.7,2010.9,6.8955]
[1743014492792,4.97232,2011.2,2010.9,6.8955]
[1743014492964,5.17012,2011.2,2010.8,4.97314]
[1743014493283,9.1620246,2011.1,2010.7,0.7755]
[1743014493486,9.1623346,2010.9,2010.6,11.09352]
[1743014493666,4.97272,2011.0,2010.6,11.09352]
[1743014494279,9.94559,2011.0,2010.6,11.09352]
[1743014494467,4.97299,2010.9,2010.6,6.12]
[1743014494670,5.17079,2010.9,2010.6,6.12]
[1743014496678,5.17079,2010.9,2010.4,0.987396]
[1743014496679,4.97326,2010.8,2010.4,0.987396]
[1743014496886,4.97388,2010.5,2010.2,0.8849748]
[1743014497257,4.97364,2010.6,2010.2,5.8595948]
[1743014497258,4.97366,2010.6,2010.2,5.8595948]
[1743014497971,9.94751,2010.6,2010.2,5.8595948]
[1743014498493,4.97391,2010.5,2010.2,5.8595948]
[1743014498693,4.97371,2010.6,2010.2,5.8594548]
[1743014498857,9.1628346,2010.7,2010.3,4.97438]
[1743014498858,14.1364246,2010.7,2010.3,4.97438]
[1743014499061,4.97368,2010.6,2010.2,5.8594548]
[1743014499294,4.97368,2010.6,2010.3,0.993392]
[1743014499475,4.97347,2010.7,2010.3,10.941972]
[1743014499658,4.97315,2010.8,2010.4,4.97412]
[1743014500088,4.97339,2010.7,2010.3,5.967622]
[1743014500289,9.94697,2010.7,2010.3,5.967622]
[1743014500491,4.97385,2010.6,2010.3,0.993392]
[1743014500663,5.17165,2010.6,2010.3,0.993392]
[1743014501196,4.97389,2010.5,2010.3,0.993392]
[1743014502494,5.17165,2010.6,2010.3,0.993392]
[1743014502669,7.09596131,2010.6,2010.2,5.0936948]
[1743014503065,7.09593131,2010.6,2010.2,5.0936948]
[1743014504492,7.09593131,2010.6,2010.2,0.1190748]
[1743014504493,4.97421,2010.4,2010.2,0.1190748]
[1743014505593,5.17218,2010.3,2010.2,0.1190748]
[1743014505895,10.25551046,2010.3,2010.2,0.1190748]
[1743014506613,0.37708974,2010.3,2010.2,0.1190748]
[1743014506813,7.97418,2010.4,2010.2,0.1190748]
[1743014507177,12.94849,2010.4,2010.2,0.1190748]
[1743014507501,7.97418,2010.4,2010.2,0.1190748]
[1743014508981,12.94847,2010.4,2010.2,0.1190748]
[1743014509181,14.91429776,2010.4,2010.2,0.1190748]
[1743014509585,9.94000776,2010.4,2010.2,0.1190748]
[1743014512105,9.3616146,2010.3,2010.2,0.1190748]
[1743014513299,9.94000776,2010.4,2010.2,0.1190748]
[1743014513483,4.97438,2010.3,2010.2,0.1190748]
[1743014513683,9.1638146,2010.3,2010.2,0.1190748]
[1743014514306,11.07244306,2010.3,2010.2,0.1190748]
[1743014517204,9.1638146,2010.3,2010.2,0.1190748]
[1743014522687,12.1638146,2010.3,2010.2,0.1190748]
[1743014522892,8.17218,2010.3,2010.2,0.1190748]
[1743014525287,7.97438,2010.3,2010.2,0.1190748]
[1743014526020,3.0,2010.3,2010.2,0.1190748]
[1743014526905,7.97438,2010.3,2010.2,0.1190748]
[1743014529685,0.1978,2010.8,2010.3,0.8314]
[1743014529891,5.17096,2010.8,2010.4,4.9741]
[1743014530086,5.17096,2010.8,2010.3,5.80574]
[1743014530087,3.0,2010.6,2010.3,5.80574]
[1743014530293,14.1364346,2010.7,2010.3,5.80574]
[1743014530493,3.0,2010.6,2010.3,5.80574]
[1743014530943,3.0,2010.6,2010.3,10.77996]
[1743014531150,3.0,2010.6,2010.3,5.80562]
[1743014531347,3.0,2010.6,2010.3,10.77986]
[1743014531634,3.0,2010.6,2010.3,10.77985]
[1743014531792,3.0,2010.6,2010.3,10.77983]
[1743014532136,3.0,2010.7,2010.4,4.97397]
[1743014532694,9.1624546,2010.9,2010.5,5.79313]
[1743014532928,4.754,2010.9,2010.6,9.94701]
[1743014533223,7.1894346,2010.9,2010.5,4.97381]
[1743014533530,12.1624246,2010.9,2010.6,14.5]
[1743014534022,17.1355046,2010.9,2010.6,14.5]
[1743014534211,12.1624246,2010.9,2010.5,10.7668]
[1743014534431,17.1354546,2010.9,2010.5,5.79309]
[1743014534728,4.97326,2010.8,2010.5,20.29328]
[1743014534925,12.3602246,2010.9,2010.5,25.26699]
[1743014535125,4.97311,2010.9,2010.5,20.29326]
[1743014535299,3.0,2010.8,2010.5,20.29314]
[1743014535505,3.0,2010.9,2010.6,9.94703]
[1743014535721,9.1621546,2011.0,2010.7,2.526643]